bitfinex/quotes_BTCUSD_20241003
["timestamp","ask_amount","ask_price","bid_price","bid_amount"]
[1727918038962,0.000817,61215.0,61214.0,0.85602442]
[1727918039223,0.000817,61215.0,61214.0,0.87482914]
[1727918039487,0.000817,61215.0,61214.0,0.84202442]
[1727918039731,0.000817,61215.0,61214.0,0.57383771]
[1727918040435,0.000817,61215.0,61214.0,0.55504771]
[1727918040709,0.000817,61215.0,61214.0,0.57383771]
[1727918040983,0.000817,61215.0,61214.0,0.54104771]
[1727918041225,0.000817,61215.0,61214.0,0.53204771]
[1727918041695,0.000817,61215.0,61214.0,0.51804771]
[1727918041950,0.000817,61215.0,61214.0,0.53204771]
[1727918042231,0.000817,61215.0,61214.0,0.51804771]
[1727918042450,0.000817,61215.0,61214.0,0.53683771]
[1727918042674,0.000817,61215.0,61214.0,0.55083771]
[1727918043122,0.000817,61215.0,61214.0,0.54683771]
[1727918043347,0.000817,61215.0,61214.0,0.53683771]
[1727918043583,0.000817,61215.0,61214.0,0.43893771]
[1727918043829,0.164175,61215.0,61214.0,0.026]
[1727918044074,0.01239722,61215.0,61214.0,0.026]
[1727918044362,0.01239722,61215.0,61214.0,0.189361]
[1727918044574,0.01239722,61215.0,61214.0,0.28527764]
[1727918044798,0.000817,61215.0,61214.0,0.31806764]
[1727918045020,0.000817,61215.0,61214.0,0.30406764]
[1727918045502,0.000817,61215.0,61214.0,0.31106764]
[1727918045729,0.000817,61215.0,61214.0,0.29906764]
[1727918046210,0.000817,61215.0,61214.0,0.29706764]
[1727918046239,0.000817,61215.0,61214.0,0.31106764]
[1727918046478,0.000817,61215.0,61214.0,0.30606764]
[1727918046701,0.000817,61215.0,61214.0,0.31706764]
[1727918047393,0.000817,61215.0,61214.0,0.41986754]
[1727918047630,0.000817,61215.0,61214.0,0.68478762]
[1727918047917,0.000818,61219.0,61217.0,0.005]
[1727918048148,0.000818,61219.0,61214.0,0.61512662]
[1727918048149,0.000818,61221.0,61220.0,0.58610724]
[1727918048382,0.000818,61221.0,61220.0,0.92607191]
[1727918049070,0.000818,61221.0,61220.0,0.9503102]
[1727918049292,0.000818,61225.0,61224.0,0.326124]
[1727918049523,0.000818,61225.0,61224.0,0.91148766]
[1727918050039,0.000818,61225.0,61224.0,0.95980481]
[1727918050267,0.000818,61225.0,61224.0,1.00810465]
[1727918050972,0.000818,61225.0,61224.0,0.98391718]
[1727918051432,0.000818,61225.0,61224.0,0.95975868]
[1727918051679,0.000818,61225.0,61224.0,0.98775868]
[1727918051909,0.000818,61225.0,61224.0,0.93948766]
[1727918052623,0.000818,61225.0,61224.0,0.92548766]
[1727918052839,0.000818,61225.0,61224.0,0.91148766]
[1727918053061,0.000818,61225.0,61224.0,0.92548766]
[1727918053295,0.000818,61225.0,61224.0,0.93948766]
[1727918053539,0.000818,61225.0,61224.0,0.93748766]
[1727918054773,0.000818,61225.0,61224.0,0.93948766]
[1727918056342,0.000818,61225.0,61224.0,0.93748766]
[1727918057041,0.000818,61226.0,61225.0,0.324121]
[1727918057275,0.000818,61226.0,61225.0,0.75305762]
[1727918057525,0.000818,61238.0,61230.0,0.67118024]
[1727918057777,0.000818,61238.0,61230.0,0.83436695]
[1727918058040,0.000818,61238.0,61236.0,0.007]
[1727918058271,0.000818,61238.0,61237.0,0.83261301]
[1727918058511,0.000818,61238.0,61237.0,0.99253466]
[1727918059252,0.000818,61238.0,61237.0,0.99053466]
[1727918059472,0.000818,61238.0,61237.0,1.00453466]
[1727918060198,0.000818,61238.0,61237.0,1.02053466]
[1727918060427,0.000818,61238.0,61237.0,1.01853466]
[1727918061560,0.000818,61238.0,61237.0,0.84656242]
[1727918061802,0.000818,61238.0,61237.0,1.01853466]
[1727918063405,0.000818,61246.0,61245.0,0.196068]
[1727918063642,0.000818,61246.0,61245.0,0.62646377]
[1727918063875,0.000818,61246.0,61245.0,0.62513166]
[1727918064799,0.000818,61246.0,61245.0,0.63913166]
[1727918065268,0.000818,61246.0,61245.0,0.65313166]
[1727918065949,0.000818,61246.0,61245.0,0.26218271]
[1727918066172,0.000818,61246.0,61245.0,0.29497271]
[1727918066416,0.000818,61246.0,61245.0,0.43415495]
[1727918067066,0.000818,61246.0,61245.0,0.46694495]
[1727918067286,0.000818,61246.0,61245.0,0.46194495]
[1727918067753,0.000818,61246.0,61245.0,0.47494495]
[1727918068177,0.000818,61246.0,61245.0,0.47594495]
[1727918068883,0.000818,61246.0,61245.0,0.48994495]
[1727918072020,0.000818,61246.0,61245.0,0.65313166]
[1727918073751,0.000818,61246.0,61245.0,0.48994495]
[1727918075930,0.000818,61246.0,61245.0,0.31797271]
[1727918076364,0.000818,61246.0,61245.0,0.29497271]
[1727918076913,0.000818,61246.0,61245.0,0.29678598]
[1727918077268,0.000818,61246.0,61245.0,0.28278598]
[1727918077921,0.000818,61246.0,61245.0,0.29678598]
[1727918078138,0.000818,61246.0,61245.0,0.28423766]
[1727918078613,0.000818,61246.0,61245.0,0.29823766]
[1727918080943,0.000818,61246.0,61245.0,0.29497271]
[1727918081185,0.000818,61246.0,61245.0,0.224068]
[1727918081848,0.000818,61246.0,61245.0,0.014]
[1727918082353,0.01082114,61246.0,61243.0,0.03274]
[1727918082579,0.01082114,61246.0,61245.0,0.014]
[1727918082808,0.01082114,61246.0,61242.0,0.163285]
[1727918082809,0.17409714,61246.0,61242.0,0.163285]
[1727918083248,0.19969796,61246.0,61245.0,0.01]
[1727918083517,0.5131702,61246.0,61245.0,0.01]
[1727918083759,0.163294,61239.0,61238.0,0.001634]
[1727918084211,0.17324439,61239.0,61238.0,0.001634]
[1727918084426,0.22424439,61239.0,61238.0,0.001634]
[1727918084689,0.31474439,61239.0,61238.0,0.001634]
[1727918084929,0.55233685,61239.0,61238.0,0.001634]
[1727918085146,0.33528724,61231.0,61230.0,0.001634]
[1727918085602,0.44534152,61231.0,61230.0,0.001634]
[1727918085823,0.49634152,61231.0,61230.0,0.001634]
[1727918087375,0.52195041,61231.0,61230.0,0.001634]
[1727918087609,0.49734152,61231.0,61230.0,0.001634]
[1727918089862,0.0149,61238.0,61230.0,0.001634]
[1727918089863,0.000818,61246.0,61230.0,0.17360624]
[1727918090092,0.0082224,61231.0,61230.0,0.187952]
[1727918090338,0.00058725,61250.0,61239.0,0.023]
[1727918090560,0.163273,61247.0,61239.0,0.03274]
[1727918090778,0.00058725,61250.0,61239.0,0.03274]
[1727918090779,0.163276,61246.0,61240.0,0.0359336]
[1727918090994,0.163273,61247.0,61242.0,0.163285]
[1727918091854,0.02560036,61246.0,61242.0,0.163285]
[1727918092300,0.35215336,61246.0,61242.0,0.006]
[1727918092571,0.02641736,61246.0,61243.0,0.02379676]
[1727918092788,0.163281,61244.0,61243.0,0.02379676]
[1727918093434,0.163281,61244.0,61242.0,0.006]
[1727918093681,0.02641736,61246.0,61242.0,0.006]
[1727918093682,0.163283,61243.0,61242.0,0.006]
[1727918093894,0.163283,61243.0,61240.0,0.0359336]
[1727918094120,0.18969436,61246.0,61241.0,0.0477264]
[1727918094339,0.164094,61246.0,61241.0,0.0477264]
[1727918094566,0.163279,61245.0,61243.0,0.007]
[1727918094813,0.000817,61246.0,61244.0,0.01234]
[1727918095045,0.164094,61246.0,61244.0,0.01234]
[1727918095781,0.163278,61245.0,61244.0,0.01234]
[1727918096016,0.327369,61246.0,61243.0,0.009]
[1727918096017,0.163281,61244.0,61243.0,0.009]
[1727918096519,0.000817,61246.0,61243.0,0.009]
[1727918096759,0.163281,61244.0,61243.0,0.009]
[1727918097237,0.18888308,61244.0,61243.0,0.007]
[1727918097464,0.163281,61244.0,61243.0,0.007]
[1727918098609,0.163281,61244.0,61243.0,0.017]
[1727918100513,0.02560213,61244.0,61243.0,0.017]
[1727918100724,0.02560213,61244.0,61243.0,0.0546324]
[1727918101136,0.18888313,61244.0,61243.0,0.0546324]
[1727918101352,0.19088313,61244.0,61243.0,0.017]
[1727918101559,0.28888313,61244.0,61243.0,0.017]
[1727918101993,0.18888313,61244.0,61243.0,0.017]
[1727918102199,0.18888313,61244.0,61243.0,0.01]
[1727918102405,0.46085537,61244.0,61243.0,0.01]
[1727918102629,0.46185537,61244.0,61243.0,0.01]
[1727918103031,0.46085537,61244.0,61243.0,0.01]
[1727918103270,1.04453051,61244.0,61243.0,0.01]
[1727918103506,1.04453051,61244.0,61230.0,0.001634]
[1727918103507,0.163315,61231.0,61230.0,0.001634]
[1727918103721,0.33528724,61231.0,61230.0,0.001634]
[1727918105297,0.43528724,61231.0,61230.0,0.001634]
[1727918105516,0.43828724,61231.0,61230.0,0.002634]
[1727918106212,0.58010156,61231.0,61230.0,0.002634]
[1727918106486,0.44028724,61231.0,61230.0,0.002634]
[1727918106899,0.43528724,61231.0,61230.0,0.001634]
[1727918107108,0.46389713,61231.0,61230.0,0.001634]
[1727918107320,1.00754913,61231.0,61230.0,0.001634]
[1727918107536,1.09072713,61231.0,61230.0,0.001634]
[1727918107888,1.15755384,61231.0,61230.0,0.001634]
[1727918108501,1.15455384,61231.0,61230.0,0.001634]
[1727918108722,1.15755384,61231.0,61230.0,0.001634]
[1727918109222,1.14225084,61231.0,61230.0,0.001634]
[1727918109449,0.80810313,61231.0,61230.0,0.001634]
[1727918109698,0.81489913,61231.0,61230.0,0.001634]
[1727918109955,0.46789713,61231.0,61230.0,0.001634]
[1727918110214,0.62483313,61231.0,61230.0,0.001634]
[1727918110466,0.46789713,61231.0,61230.0,0.001634]
[1727918111304,0.46789713,61231.0,61220.0,0.24529644]
[1727918111305,0.263342,61221.0,61220.0,0.24529644]
[1727918111544,0.994462,61221.0,61220.0,0.24529644]
[1727918112032,1.16643424,61221.0,61220.0,0.24529644]
[1727918112265,0.263363,61213.0,61212.0,0.24529644]
[1727918112505,0.43533524,61213.0,61212.0,0.24529644]
[1727918113010,0.43533524,61213.0,61210.0,0.001634]
[1727918113011,0.263369,61211.0,61210.0,0.001634]
[1727918114207,0.34397634,61211.0,61210.0,0.001634]
[1727918114468,0.43536824,61201.0,61197.0,0.24529644]
[1727918114700,0.69305424,61201.0,61197.0,0.24529644]
[1727918115476,0.69305424,61201.0,61178.0,0.0982]
[1727918115715,0.83036591,61201.0,61178.0,0.0982]
[1727918115951,0.94184305,61201.0,61178.0,0.0982]
[1727918116401,0.94184305,61201.0,61178.0,0.261657]
[1727918116402,0.94984305,61201.0,61178.0,0.261657]
[1727918116643,0.94984305,61201.0,61179.0,0.163454]
[1727918116876,0.93984305,61201.0,61178.0,0.261656]
[1727918117377,0.65825991,61201.0,61178.0,0.425113]
[1727918117588,0.53367991,61201.0,61200.0,0.002636]
[1727918117807,0.52167991,61201.0,61200.0,0.001636]
[1727918118231,0.267396,61201.0,61200.0,0.001636]
[1727918118872,0.280396,61201.0,61200.0,0.001636]
[1727918119287,0.267396,61201.0,61200.0,0.001636]
[1727918119537,0.004,61201.0,61200.0,0.001636]
[1727918119757,0.008,61201.0,61200.0,0.001636]
[1727918119972,0.02961866,61201.0,61200.0,0.03426232]
[1727918120185,0.03061866,61201.0,61200.0,0.034376]
[1727918120401,0.02561866,61201.0,61200.0,0.036376]
[1727918120842,0.02561866,61201.0,61200.0,0.041376]
[1727918121093,0.02561866,61201.0,61200.0,0.036376]
[1727918121299,0.02661866,61201.0,61200.0,0.046376]
[1727918121505,0.02661866,61201.0,61200.0,0.270133]
[1727918121714,0.02661866,61201.0,61200.0,0.237393]
[1727918121927,0.02661866,61201.0,61200.0,0.235393]
[1727918122367,0.02761866,61201.0,61200.0,0.178034]
[1727918122788,0.02661866,61201.0,61200.0,0.207774]
[1727918123067,0.02661866,61201.0,61200.0,0.306374]
[1727918123280,0.02661866,61201.0,61200.0,0.309374]
[1727918123281,0.02761866,61201.0,61200.0,0.309374]
[1727918123500,0.02761866,61201.0,61200.0,0.43790314]
[1727918124138,0.002,61201.0,61200.0,0.43790314]
[1727918124589,0.002,61201.0,61200.0,0.46090314]
[1727918124794,0.002,61201.0,61200.0,0.54370314]
[1727918126086,0.001,61201.0,61200.0,0.53070314]
[1727918126306,0.163365,61213.0,61209.0,0.10904]
[1727918126521,0.163367,61212.0,61209.0,0.0763]
[1727918126735,0.163367,61212.0,61209.0,0.1035418]
[1727918126954,0.326709,61217.0,61209.0,0.1035418]
[1727918127177,0.326636,61231.0,61209.0,0.1035418]
[1727918127392,0.163367,61212.0,61209.0,0.1035418]
[1727918127818,0.163367,61212.0,61209.0,0.0843]
[1727918127819,0.326738,61211.0,61209.0,0.0843]
[1727918128049,0.163371,61210.0,61209.0,0.0763]
[1727918128260,0.16337,61211.0,61209.0,0.0763]
[1727918128713,0.163371,61210.0,61209.0,0.0793]
[1727918129196,0.163369,61211.0,61209.0,0.0763]
[1727918129435,0.163369,61211.0,61209.0,0.0823]
[1727918129905,0.000818,61212.0,61209.0,0.0823]
[1727918130147,0.164184,61212.0,61209.0,0.0863]
[1727918130388,0.164184,61212.0,61209.0,0.0763]
[1727918130943,0.164184,61212.0,61203.0,0.083]
[1727918130944,0.163374,61209.0,61203.0,0.083]
[1727918131182,0.326751,61209.0,61200.0,0.100236]
[1727918131417,0.1081941,61212.0,61200.0,0.100236]
[1727918131418,0.163396,61201.0,61200.0,0.100236]
[1727918131651,0.001,61210.0,61200.0,0.100236]
[1727918131935,0.001,61210.0,61201.0,0.326792]
[1727918132152,0.02561667,61208.0,61201.0,0.326792]
[1727918132392,0.02561667,61208.0,61203.0,0.163388]
[1727918132630,0.16338,61207.0,61203.0,0.163388]
[1727918132863,0.16338,61207.0,61201.0,0.326792]
[1727918133073,0.16338,61207.0,61201.0,0.359532]
[1727918133320,0.02561667,61208.0,61201.0,0.329792]
[1727918133539,0.35237467,61208.0,61202.0,0.0513028]
[1727918133755,0.32678,61204.0,61200.0,0.100236]
[1727918133941,0.163388,61204.0,61203.0,0.25429644]
[1727918134181,0.163388,61204.0,61200.0,0.33922524]
[1727918134391,0.163392,61203.0,61200.0,0.17582924]
[1727918134582,0.163393,61202.0,61200.0,0.132976]
[1727918134821,0.163388,61204.0,61200.0,0.22812464]
[1727918135027,0.163384,61206.0,61200.0,0.22812464]
[1727918135247,0.326749,61209.0,61200.0,0.22812464]
[1727918135248,0.326749,61209.0,61200.0,0.19538464]
[1727918135527,0.000818,61212.0,61204.0,0.103]
[1727918135728,0.000818,61212.0,61211.0,0.163369]
[1727918135938,0.000818,61212.0,61210.0,0.163371]
[1727918136381,0.000818,61212.0,61208.0,0.326749]
[1727918136382,0.000818,61212.0,61211.0,0.163369]
[1727918136599,0.000818,61212.0,61209.0,0.4023998]
[1727918136818,0.000818,61212.0,61210.0,0.163369]
[1727918137242,0.02643047,61212.0,61210.0,0.173369]
[1727918137887,0.02643047,61212.0,61210.0,0.206109]
[1727918138112,0.02643047,61212.0,61210.0,0.01]
[1727918138427,0.001818,61212.0,61210.0,0.018]
[1727918138534,0.165185,61212.0,61210.0,0.008]
[1727918139436,0.165185,61212.0,61204.0,0.08]
[1727918139437,0.000818,61212.0,61204.0,0.08]
[1727918139669,0.000818,61212.0,61205.0,0.24529644]
[1727918139670,0.163379,61208.0,61205.0,0.24529644]
[1727918139891,0.163379,61208.0,61205.0,0.35648138]
[1727918140557,0.32675,61209.0,61204.0,0.09]
[1727918140777,0.163383,61206.0,61204.0,0.09]
[1727918140992,0.32675,61209.0,61204.0,0.09]
[1727918140993,0.163381,61207.0,61205.0,0.0353628]
[1727918142140,0.001,61206.0,61205.0,0.0353628]
[1727918142611,0.163381,61207.0,61205.0,0.0493628]
[1727918142826,0.02561521,61206.0,61205.0,0.0353628]
[1727918143048,0.02561521,61206.0,61205.0,0.0483628]
[1727918143269,0.18899721,61206.0,61205.0,0.027]
[1727918143490,0.18899721,61206.0,61205.0,0.05974]
[1727918143707,0.18899721,61206.0,61205.0,0.013]
[1727918143949,0.02561521,61206.0,61205.0,0.013]
[1727918144183,0.32675,61209.0,61205.0,0.014]
[1727918144406,0.163382,61206.0,61205.0,0.028]
[1727918144618,0.164382,61206.0,61205.0,0.028]
[1727918144917,0.001,61206.0,61205.0,0.058217]
[1727918145133,0.16338,61207.0,61205.0,0.044217]
[1727918145347,0.163382,61206.0,61205.0,0.014]
[1727918145566,0.163382,61206.0,61205.0,0.025]
[1727918146462,0.163382,61206.0,61205.0,0.014]
[1727918147358,0.18899805,61206.0,61205.0,0.014]
[1727918148052,0.18899805,61206.0,61205.0,0.027]
[1727918149199,0.18899805,61206.0,61205.0,0.014]
[1727918149720,0.18999805,61206.0,61205.0,0.028]
[1727918149952,0.164382,61206.0,61205.0,0.028]
[1727918151149,0.001,61206.0,61205.0,0.028]
[1727918151362,0.001,61206.0,61205.0,0.1283022]
[1727918151585,0.327552,61212.0,61205.0,0.1143022]
[1727918151811,0.163373,61210.0,61206.0,0.19612]
[1727918152028,0.32674,61211.0,61207.0,0.06411962]
[1727918152252,0.163377,61208.0,61207.0,0.06411962]
[1727918152516,0.163377,61208.0,61206.0,0.03274]
[1727918152754,0.18899233,61208.0,61206.0,0.03274]
[1727918153689,0.18999233,61208.0,61207.0,0.014]
[1727918153908,0.18999233,61208.0,61206.0,0.03274]
[1727918154126,0.19099233,61208.0,61207.0,0.011]
[1727918154350,0.002,61208.0,61207.0,0.011]
[1727918154594,0.002,61208.0,61207.0,0.1053]
[1727918154813,0.002,61208.0,61207.0,0.26868]
[1727918155029,0.002,61208.0,61207.0,0.42021018]
[1727918155257,0.003,61208.0,61207.0,0.42021018]
[1727918155464,0.001,61208.0,61207.0,0.42021018]
[1727918155677,0.000818,61212.0,61207.0,0.24583018]
[1727918155678,0.163372,61210.0,61207.0,0.24583018]
[1727918155898,0.001,61208.0,61207.0,0.25983018]
[1727918156117,0.002,61208.0,61207.0,0.1083]
[1727918156336,0.002,61208.0,61207.0,0.27168]
[1727918156812,0.16337,61211.0,61207.0,0.25768]
[1727918157057,0.001,61210.0,61208.0,0.10869886]
[1727918157761,0.164373,61210.0,61208.0,0.10869886]
[1727918158193,0.163373,61210.0,61208.0,0.10869886]
[1727918158411,0.000818,61212.0,61208.0,0.10869886]
[1727918158628,0.326739,61211.0,61207.0,0.1083]
[1727918158871,0.326739,61211.0,61205.0,0.082636]
[1727918158872,0.163382,61206.0,61205.0,0.082636]
[1727918159074,0.163382,61206.0,61205.0,0.001636]
[1727918160191,0.163382,61206.0,61205.0,0.003636]
[1727918160429,0.163382,61206.0,61205.0,0.007636]
[1727918160658,0.39494598,61206.0,61205.0,0.005636]
[1727918160894,0.60054098,61206.0,61205.0,0.005636]
[1727918161109,0.67764698,61206.0,61205.0,0.005636]
[1727918161331,0.70326766,61206.0,61205.0,0.005636]
[1727918161565,0.75426766,61206.0,61205.0,0.005636]
[1727918161801,0.75426766,61206.0,61205.0,0.001636]
[1727918161802,0.85214748,61206.0,61205.0,0.001636]
[1727918162025,0.75426766,61206.0,61205.0,0.009636]
[1727918162246,0.87661744,61206.0,61205.0,0.004636]
[1727918162681,0.88061744,61206.0,61205.0,0.001636]
[1727918162908,0.89061744,61206.0,61205.0,0.002636]
[1727918163365,0.76426766,61206.0,61205.0,0.002636]
[1727918163607,0.75626766,61206.0,61205.0,0.001636]
[1727918164318,0.74264698,61206.0,61205.0,0.002636]
[1727918165437,0.86506451,61206.0,61205.0,0.002636]
[1727918166393,0.74264698,61206.0,61205.0,0.002636]
[1727918166634,0.73064698,61206.0,61205.0,0.001636]
[1727918166872,0.265396,61201.0,61200.0,1e-08]
[1727918167161,0.43741281,61201.0,61200.0,1e-08]
[1727918167461,0.263425,61190.0,61189.0,0.24529644]
[1727918167751,0.67894381,61190.0,61189.0,0.24529644]
[1727918168056,0.62473481,61190.0,61189.0,0.24529644]
[1727918168256,0.43544181,61190.0,61189.0,0.24529644]
[1727918168746,0.163444,61183.0,61175.0,0.0763]
[1727918169474,0.163444,61183.0,61182.0,0.001634]
[1727918170329,0.64361681,61198.0,61182.0,0.078034]
[1727918170541,0.64361681,61198.0,61182.0,0.080034]
[1727918170542,0.001,61183.0,61182.0,0.080034]
[1727918171055,0.164444,61183.0,61182.0,0.083034]
[1727918171335,0.165444,61183.0,61182.0,0.083034]
[1727918171592,0.33746081,61183.0,61182.0,0.006634]
[1727918171869,0.165444,61183.0,61182.0,0.183934]
[1727918172121,0.002,61183.0,61182.0,0.2350674]
[1727918172361,0.001,61183.0,61182.0,0.2300674]
[1727918172604,0.326853,61190.0,61182.0,0.2300674]
[1727918172605,0.163425,61190.0,61182.0,0.3935134]
[1727918172876,0.17201681,61192.0,61182.0,0.3935134]
[1727918172877,0.02562207,61183.0,61182.0,0.3935134]
[1727918173089,0.02562207,61183.0,61182.0,0.3955134]
[1727918173090,0.02662207,61183.0,61182.0,0.3955134]
[1727918173344,0.02662207,61183.0,61182.0,0.3975134]
[1727918173345,0.002,61183.0,61182.0,0.3975134]
[1727918173595,0.24529644,61215.0,61184.0,0.03274]
[1727918173877,0.24529644,61206.0,61198.0,0.0763]
[1727918174136,0.163401,61199.0,61198.0,0.0763]
[1727918175362,0.17201681,61201.0,61198.0,0.087204]
[1727918175629,0.33541281,61201.0,61198.0,0.087204]
[1727918176101,0.001,61199.0,61198.0,0.094204]
[1727918176345,0.33541281,61201.0,61198.0,0.087204]
[1727918176577,0.33641281,61201.0,61198.0,0.092204]
[1727918176810,0.33641281,61201.0,61198.0,0.094204]
[1727918177075,0.17301681,61201.0,61198.0,0.094204]
[1727918177314,0.163401,61199.0,61198.0,0.0813]
[1727918177550,0.17301681,61201.0,61198.0,0.0813]
[1727918177790,0.163398,61200.0,61198.0,0.0813]
[1727918178530,0.163398,61200.0,61198.0,0.0763]
[1727918178779,0.163401,61199.0,61198.0,0.077936]
[1727918179029,0.163401,61199.0,61198.0,0.078936]
[1727918179280,0.163401,61199.0,61198.0,0.002636]
[1727918179516,0.164401,61199.0,61198.0,0.004636]
[1727918179968,0.18902132,61199.0,61198.0,0.001636]
[1727918180193,0.163401,61199.0,61198.0,0.009636]
[1727918180429,0.164401,61199.0,61198.0,0.009636]
[1727918180684,0.164401,61199.0,61198.0,0.007636]
[1727918180911,0.163401,61199.0,61198.0,0.007636]
[1727918181119,0.164401,61199.0,61198.0,0.009636]
[1727918181535,0.164401,61199.0,61198.0,0.003636]
[1727918181978,0.165401,61199.0,61198.0,0.010636]
[1727918182687,0.1910205,61199.0,61198.0,0.010636]
[1727918184178,0.165401,61199.0,61198.0,0.010636]
[1727918187497,0.19102094,61199.0,61198.0,0.010636]
[1727918191632,0.165401,61199.0,61198.0,0.010636]
[1727918193839,0.002,61199.0,61198.0,0.010636]
[1727918194060,0.002,61199.0,61198.0,0.186436]
[1727918194273,0.002,61199.0,61198.0,0.254104]
[1727918194490,0.002,61199.0,61198.0,0.417508]
[1727918194738,0.002,61199.0,61198.0,0.440508]
[1727918195155,0.001,61199.0,61198.0,0.438508]
[1727918195361,0.001,61199.0,61198.0,0.275104]
[1727918195568,0.000818,61201.0,61199.0,0.023]
[1727918195794,0.000818,61201.0,61199.0,0.2662076]
[1727918196277,0.000818,61201.0,61199.0,0.1028066]
[1727918196705,0.000818,61201.0,61199.0,0.1098066]
[1727918196926,0.002818,61201.0,61199.0,0.1208066]
[1727918197128,0.002818,61201.0,61200.0,0.10522756]
[1727918197367,0.002818,61201.0,61200.0,0.26862556]
[1727918197568,0.002818,61201.0,61200.0,0.10522756]
[1727918197989,0.163398,61200.0,61199.0,0.018]
[1727918198220,0.002818,61201.0,61200.0,0.240398]
[1727918198471,0.000818,61208.0,61207.0,0.16338]
[1727918198743,0.24529644,61224.0,61211.0,0.196109]
[1727918198956,0.24529644,61224.0,61211.0,0.75106859]
[1727918199201,0.163314,61232.0,61211.0,0.74980107]
[1727918199420,0.24529644,61233.0,61211.0,0.74780107]
[1727918199636,0.24529644,61233.0,61232.0,0.0798]
[1727918200107,0.185025,61233.0,61232.0,0.0798]
[1727918200522,0.1633,61237.0,61232.0,0.0798]
[1727918200731,0.326574,61242.0,61232.0,0.0798]
[1727918200732,0.264952,61236.0,61233.0,0.163308]
[1727918200935,0.163293,61240.0,61233.0,0.0370257]
[1727918201150,0.326574,61242.0,61233.0,0.0370257]
[1727918201151,0.1633,61237.0,61233.0,0.0370257]
[1727918201355,0.264952,61236.0,61234.0,0.04072827]
[1727918201985,0.1633,61237.0,61234.0,0.04072827]
[1727918202189,0.02560354,61236.0,61234.0,0.04072827]
[1727918202867,0.16331,61233.0,61232.0,0.0798]
[1727918203076,0.16331,61233.0,61225.0,0.0771]
[1727918203077,0.326642,61230.0,61225.0,0.0771]
[1727918203295,0.17283481,61233.0,61225.0,0.0771]
[1727918203296,0.326628,61232.0,61225.0,0.0771]
[1727918203521,0.164129,61233.0,61226.0,0.04166964]
[1727918203726,0.164129,61233.0,61227.0,0.00326618]
[1727918203934,0.000818,61233.0,61227.0,0.00326618]
[1727918204138,0.16413,61233.0,61228.0,0.10206593]
[1727918205035,0.16413,61233.0,61232.0,0.008]
[1727918205233,0.16413,61233.0,61228.0,0.10206593]
[1727918205234,0.163313,61232.0,61228.0,0.10206593]
[1727918205449,0.001818,61233.0,61232.0,0.41460944]
[1727918205667,0.001818,61233.0,61232.0,0.169313]
[1727918205886,0.001818,61233.0,61232.0,0.163313]
[1727918205887,0.000818,61233.0,61232.0,0.163313]
[1727918206092,0.000818,61233.0,61232.0,0.172313]
[1727918206336,0.001818,61233.0,61232.0,0.24498799]
[1727918206593,0.001818,61233.0,61232.0,0.67488443]
[1727918206814,0.000818,61233.0,61232.0,0.45532799]
[1727918207081,0.000818,61233.0,61232.0,0.6185147]
[1727918207307,0.001818,61233.0,61232.0,0.6295147]
[1727918208319,0.001818,61233.0,61232.0,0.6425147]
[1727918208577,0.000818,61233.0,61232.0,0.6315147]
[1727918208818,0.000818,61233.0,61232.0,0.6325147]
[1727918209040,0.000818,61233.0,61232.0,0.6465147]
[1727918209549,0.000818,61233.0,61232.0,0.29701499]
[1727918210233,0.000818,61233.0,61232.0,0.43232799]
[1727918210667,0.000818,61233.0,61232.0,0.45532799]
[1727918211384,0.000818,61233.0,61232.0,0.6185147]
[1727918211589,0.001818,61233.0,61232.0,0.6325147]
[1727918211814,0.001818,61233.0,61232.0,0.6465147]
[1727918212028,0.000818,61233.0,61232.0,0.6325147]
[1727918212237,0.000818,61233.0,61232.0,0.6185147]
[1727918212457,0.001818,61233.0,61232.0,0.6415147]
[1727918212695,0.001818,61233.0,61232.0,0.6285147]
[1727918212905,0.000818,61233.0,61232.0,0.6185147]
[1727918213127,0.000818,61233.0,61232.0,0.6325147]
[1727918213341,0.001818,61233.0,61232.0,0.6465147]
[1727918213579,0.001378,61233.0,61232.0,0.6465147]
[1727918214522,0.001378,61233.0,61232.0,0.89181114]
[1727918214737,0.001378,61233.0,61232.0,0.6465147]
[1727918218461,0.001378,61233.0,61232.0,0.32001499]
[1727918218679,0.001378,61233.0,61232.0,0.48332799]
[1727918219388,0.001378,61233.0,61232.0,0.46932799]
[1727918219599,0.000378,61233.0,61232.0,0.45532799]
[1727918219808,0.000378,61233.0,61232.0,0.46932799]
[1727918220026,0.000378,61233.0,61232.0,0.45532799]
[1727918220235,0.000378,61233.0,61232.0,0.46932799]
[1727918220493,0.000378,61233.0,61232.0,0.21391499]
[1727918220742,0.163688,61233.0,61232.0,0.12524]
[1727918220969,0.33570481,61233.0,61232.0,0.04674]
[1727918221200,0.33570481,61233.0,61232.0,0.06074]
[1727918221201,0.001378,61233.0,61232.0,0.06074]
[1727918221416,0.001378,61233.0,61232.0,0.317853]
[1727918221638,0.001378,61233.0,61232.0,0.4836703]
[1727918221878,0.001378,61233.0,61232.0,0.46640458]
[1727918222098,0.000378,61233.0,61232.0,0.46540458]
[1727918222556,0.001378,61233.0,61232.0,0.48640458]
[1727918222790,0.001378,61233.0,61232.0,0.33709158]
[1727918223040,0.163688,61233.0,61232.0,0.20929158]
[1727918223279,0.163688,61233.0,61232.0,0.04674]
[1727918223719,0.163688,61233.0,61232.0,0.014]
[1727918224851,0.263688,61233.0,61232.0,0.014]
[1727918225078,0.359988,61233.0,61232.0,0.028]
[1727918225763,0.163334,61224.0,61223.0,0.24529644]
[1727918225986,0.33535081,61224.0,61223.0,0.24529644]
[1727918226214,0.163353,61217.0,61216.0,0.24529644]
[1727918226434,0.33536981,61217.0,61216.0,0.24529644]
[1727918227145,0.17201681,61217.0,61207.0,0.24529644]
[1727918227362,0.163363,61213.0,61208.0,0.03274]
[1727918227570,0.163363,61213.0,61212.0,0.02960324]